fUST/lending_fUST_20250206
["ID","MTS","AMOUNT","RATE_DAILY","PERIOD"]
[351736660,1738771838117,-9497.5,0.00015252,2]
[351736663,1738771838127,-9497.5,0.00015252,2]
[351736664,1738771838137,-5635.6,0.00015252,2]
[351736667,1738771838147,-671.02,0.00015252,2]
[351736669,1738771838157,-2087.79,0.00015252,2]
[351736671,1738771838167,-500.0,0.00015252,2]
[351736673,1738771838177,-500.33439288,0.00015252,2]
[351736675,1738771838188,-605.75,0.00015252,2]
[351736677,1738771838198,-237.0183213,0.00015252,2]
[351736679,1738771838207,-560.17,0.00015253,2]
[351736681,1738771838217,-500.0,0.00015253,2]
[351736683,1738771838228,-638.7,0.00015253,2]
[351736685,1738771838238,-500.0,0.00015253,2]
[351736686,1738771838247,-671.61,0.00015253,2]
[351736687,1738771838257,-500.0,0.00015253,2]
[351736688,1738771838266,-500.0,0.00015253,2]
[351736689,1738771838277,-523.51,0.00015253,2]
[351736690,1738771838287,-500.0,0.00015253,2]
[351736691,1738771838297,-500.0,0.00015253,2]
[351736692,1738771838311,-264.79835381,0.00015253,2]
[351736693,1738771838323,-549.36,0.00015253,2]
[351736694,1738771838333,-778.51,0.00015253,2]
[351736695,1738771838343,-500.0,0.00015253,2]
[351736696,1738771838353,-576.27,0.00015253,2]
[351736697,1738771838365,-1817.95,0.00015253,2]
[351736698,1738771838376,-500.0,0.00015253,2]
[351736699,1738771838386,-500.0,0.00015253,2]
[351736700,1738771838396,-500.0,0.00015253,2]
[351736701,1738771838406,-862.5,0.00015253,2]
[351736702,1738771838416,-952.08,0.00015253,2]
[351736703,1738771838426,-500.0,0.00015253,2]
[351736704,1738771838435,-2319.35,0.00015253,2]
[351736705,1738771838446,-500.0,0.00015253,2]
[351736706,1738771838455,-500.0,0.00015253,2]
[351736707,1738771838465,-500.0,0.00015253,2]
[351736708,1738771838475,-500.0,0.00015253,2]
[351736709,1738771838483,-500.0,0.00015253,2]
[351736710,1738771838492,-500.0,0.00015253,2]
[351736711,1738771838501,-690.89,0.00015253,2]
[351736712,1738771838511,-500.0,0.00015253,2]
[351736713,1738771838520,-500.81951843,0.00015253,2]
[351736714,1738771838530,-1105.71,0.00015253,2]
[351736716,1738771838540,-500.0,0.00015253,2]
[351736717,1738771838550,-246.30302389,0.00015253,2]
[351736719,1738771838565,-500.0,0.00015253,2]
[351736721,1738771838574,-569.07,0.00015253,2]
[351736722,1738771838585,-1304.48,0.00015253,2]
[351736725,1738771838595,-500.0,0.00015253,2]
[351736728,1738771838605,-3826.77,0.00015253,2]
[351736730,1738771838615,-500.0,0.00015253,2]
[351736732,1738771838625,-503.85225672,0.00015253,2]
[351736735,1738771838635,-1024.48,0.00015253,2]
[351736736,1738771838645,-1024.48,0.00015253,2]
[351736738,1738771838654,-1024.48,0.00015253,2]
[351736740,1738771838664,-1024.48,0.00015253,2]
[351736742,1738771838673,-1024.48,0.00015253,2]
[351736744,1738771838684,-1024.48,0.00015253,2]
[351736746,1738771838693,-1024.48,0.00015253,2]
[351736748,1738771838702,-1024.48,0.00015253,2]
[351736750,1738771838712,-1024.48,0.00015253,2]
[351736752,1738771838722,-1024.49000291,0.00015253,2]
[351736754,1738771838732,-500.0,0.00015253,2]
[351736756,1738771838741,-4263.61,0.00015253,2]
[351736758,1738771838751,-34814.35,0.00015253,2]
[351736760,1738771838761,-692.68,0.00015253,2]
[351736762,1738771838772,-500.0,0.00015253,2]
[351736764,1738771838781,-500.0,0.00015253,2]
[351736766,1738771838791,-855.31,0.00015253,2]
[351736768,1738771838801,-2957.64,0.00015253,2]
[351736770,1738771838816,-500.0,0.00015253,2]
[351736772,1738771838826,-500.0,0.00015253,2]
[351736774,1738771838836,-637.22,0.00015253,2]
[351736776,1738771838846,-1142.54,0.00015253,2]
[351736778,1738771838856,-500.0,0.00015253,2]
[351736780,1738771838865,-2129.92,0.00015253,2]
[351736782,1738771838875,-959.12,0.00015253,2]
[351736784,1738771838885,-500.0,0.00015253,2]
[351736787,1738771838895,-500.0,0.00015253,2]
[351736789,1738771838905,-500.0,0.00015253,2]
[351736791,1738771838915,-500.0,0.00015253,2]
[351736793,1738771838924,-500.0,0.00015253,2]
[351736795,1738771838934,-1315.79,0.00015253,2]
[351736797,1738771838944,-500.0,0.00015253,2]
[351736799,1738771838954,-500.0,0.00015253,2]
[351736801,1738771838963,-500.0,0.00015253,2]
[351736803,1738771838973,-1143.65,0.00015253,2]
[351736805,1738771838982,-9497.5,0.00015253,2]
[351736807,1738771838992,-9497.5,0.00015253,2]
[351736809,1738771839001,-9497.5,0.00015253,2]
[351736811,1738771839011,-9497.5,0.00015253,2]
[351736813,1738771839020,-9497.5,0.00015253,2]
[351736814,1738771839030,-9497.5,0.00015253,2]
[351736816,1738771839040,-9497.5,0.00015253,2]
[351736818,1738771839050,-9497.5,0.00015253,2]
[351736819,1738771839063,-9497.5,0.00015253,2]
[351736821,1738771839073,-9497.67855801,0.00015253,2]
[351736823,1738771839084,-500.0,0.00015253,2]
[351736824,1738771839094,-450.52609032,0.00015253,2]
[351736827,1738771839104,-500.0,0.00015253,2]
[351736828,1738771839114,-500.0,0.00015253,2]
[351736830,1738771839124,-151.0,0.00015253,2]
[351736832,1738771839134,-151.0,0.00015253,2]
[351736834,1738771839143,-538.94,0.00015253,2]
[351736835,1738771839153,-680.93,0.00015253,2]
[351736836,1738771839162,-502.42316664,0.00015253,2]
[351736837,1738771839171,-500.0,0.00015253,2]
[351736838,1738771839181,-151.0,0.00015253,2]
[351736839,1738771839191,-151.0,0.00015253,2]
[351736840,1738771839201,-500.0,0.00015253,2]
[351736841,1738771839211,-704.57,0.00015253,2]
[351736843,1738771839220,-2063.8,0.00015253,2]
[351736845,1738771839229,-500.0,0.00015254,2]
[351736847,1738771839239,-790.27,0.00015254,2]
[351736849,1738771839248,-500.0,0.00015254,2]
[351736851,1738771839257,-232.60850777,0.00015254,2]
[351736853,1738771839266,-500.0,0.00015254,2]
[351736855,1738771839275,-500.0,0.00015254,2]
[351736857,1738771839285,-500.0,0.00015254,2]
[351736859,1738771839294,-500.0,0.00015254,2]
[351736861,1738771839305,-500.0,0.00015254,2]
[351736862,1738771839314,-500.0,0.00015254,2]
[351736865,1738771839325,-500.0,0.00015254,2]
[351736867,1738771839335,-500.0,0.00015254,2]
[351736869,1738771839345,-500.0,0.00015254,2]
[351736871,1738771839355,-500.0,0.00015254,2]
[351736873,1738771839365,-508.98091614,0.00015254,2]
[351736875,1738771839376,-412.20076593,0.00015254,2]
[351736877,1738771839387,-425.2021342,0.00015254,2]
[351736879,1738771839397,-500.0,0.00015254,2]
[351736881,1738771839407,-500.0,0.00015254,2]
[351736883,1738771839418,-1208.5,0.00015254,2]
[351736885,1738771839428,-500.0,0.00015254,2]
[351736887,1738771839439,-330.24984875,0.00015254,2]
[351736889,1738771839449,-534.85,0.00015254,2]
[351736891,1738771839460,-500.0,0.00015254,2]
[351736893,1738771839470,-500.0,0.00015254,2]
[351736895,1738771839480,-862.52,0.00015254,2]
[351736897,1738771839491,-500.0,0.00015254,2]
[351736899,1738771839501,-500.0,0.00015254,2]
[351736901,1738771839511,-500.0,0.00015254,2]
[351736903,1738771839521,-500.0,0.00015254,2]
[351736905,1738771839531,-500.0,0.00015254,2]
[351736907,1738771839543,-728.51,0.00015254,2]
[351736909,1738771839553,-500.0,0.00015254,2]
[351736911,1738771839564,-500.0,0.00015254,2]
[351736913,1738771839574,-629.17,0.00015254,2]
[351736915,1738771839584,-1199.02,0.00015254,2]
[351736917,1738771839593,-500.0,0.00015254,2]
[351736919,1738771839603,-500.0,0.00015254,2]
[351736921,1738771839613,-402.65032782,0.00015254,2]
[351736923,1738771839624,-907.18,0.00015254,2]
[351736925,1738771839634,-500.0,0.00015254,2]
[351736927,1738771839645,-500.0,0.00015254,2]
[351736929,1738771839655,-500.0,0.00015254,2]
[351736931,1738771839666,-500.0,0.00015254,2]
[351736933,1738771839676,-500.0,0.00015254,2]
[351736935,1738771839688,-542.4,0.00015254,2]
[351736937,1738771839698,-500.0,0.00015254,2]
[351736939,1738771839708,-500.0,0.00015254,2]
[351736941,1738771839718,-500.0,0.00015254,2]
[351736943,1738771839728,-500.0,0.00015254,2]
[351736945,1738771839738,-500.0,0.00015254,2]
[351736947,1738771839748,-643.46,0.00015254,2]
[351736949,1738771839758,-500.0,0.00015254,2]
[351736951,1738771839768,-1041.75,0.00015254,2]
[351736953,1738771839777,-500.0,0.00015254,2]
[351736955,1738771839787,-500.0,0.00015254,2]
[351736957,1738771839796,-200.01947507,0.00015254,2]
[351736959,1738771839810,-500.0,0.00015254,2]
[351736961,1738771839819,-827.94,0.00015254,2]
[351736963,1738771839829,-500.0,0.00015254,2]
[351736965,1738771839838,-502.75991926,0.00015254,2]
[351736967,1738771839849,-500.0,0.00015254,2]
[351736969,1738771839859,-500.0,0.00015254,2]
[351736971,1738771839870,-1543.04,0.00015254,2]
[351736973,1738771839879,-500.0,0.00015254,2]
[351736975,1738771839889,-836.82,0.00015254,2]
[351736977,1738771839898,-500.0,0.00015254,2]
[351736979,1738771839907,-1748.68,0.00015254,2]
[351736981,1738771839917,-500.0,0.00015254,2]
[351736983,1738771839927,-500.0,0.00015254,2]
[351736985,1738771839936,-500.0,0.00015254,2]
[351736987,1738771839946,-500.0,0.00015254,2]
[351736988,1738771839956,-503.41930223,0.00015254,2]
[351736989,1738771839966,-602.21471939,0.00015254,2]
[351736990,1738771839977,-500.0,0.00015254,2]
[351736991,1738771839989,-500.0,0.00015254,2]
[351736993,1738771840000,-500.0,0.00015254,2]
[351736995,1738771840011,-500.0,0.00015254,2]
[351736997,1738771840022,-634.6,0.00015254,2]
[351736999,1738771840032,-188.0,0.00015254,2]
[351737001,1738771840043,-500.0,0.00015254,2]
[351737004,1738771840059,-500.0,0.00015254,2]
[351737006,1738771840073,-500.0,0.00015254,2]
[351737008,1738771840086,-500.0,0.00015254,2]
[351737010,1738771840097,-500.0,0.00015254,2]
[351737012,1738771840107,-500.0,0.00015254,2]
[351737014,1738771840116,-500.0,0.00015254,2]
[351737016,1738771840127,-500.0,0.00015254,2]
[351737018,1738771840138,-500.0,0.00015254,2]
[351737020,1738771840147,-500.0,0.00015254,2]
[351737022,1738771840158,-500.0,0.00015254,2]
[351737024,1738771840169,-500.0,0.00015254,2]
[351737027,1738771840180,-500.0,0.00015254,2]
[351737030,1738771840189,-500.0,0.00015254,2]
[351737033,1738771840199,-565.51365423,0.00015254,2]
[351737041,1738771840258,-500.0,0.00015254,2]
[351737044,1738771840268,-500.0,0.00015254,2]
[351737046,1738771840278,-1059.33,0.00015254,2]
[351737048,1738771840289,-240.06075267,0.00015254,2]
[351737050,1738771840300,-500.0,0.00015254,2]
[351737052,1738771840313,-500.0,0.00015254,2]
[351737054,1738771840323,-500.0,0.00015254,2]
[351737056,1738771840332,-500.0,0.00015254,2]
[351737058,1738771840342,-300.0,0.00015254,2]
[351737060,1738771840352,-500.0,0.00015254,2]
[351737062,1738771840362,-490.32913366,0.00015254,2]
[351737064,1738771840374,-500.0,0.00015254,2]
[351737066,1738771840386,-500.0,0.00015254,2]
[351737068,1738771840397,-561.7,0.00015254,2]
[351737070,1738771840407,-500.0,0.00015254,2]
[351737072,1738771840418,-513.01,0.00015254,2]
[351737074,1738771840429,-500.0,0.00015254,2]
[351737076,1738771840439,-500.0,0.00015254,2]
[351737078,1738771840448,-500.0,0.00015254,2]
[351737080,1738771840459,-500.0,0.00015254,2]
[351737082,1738771840469,-278.91835774,0.00015254,2]
[351737084,1738771840479,-500.0,0.00015254,2]
[351737086,1738771840488,-500.0,0.00015254,2]
[351737087,1738771840498,-500.0,0.00015254,2]
[351737090,1738771840508,-500.0,0.00015254,2]
[351737091,1738771840518,-593.91,0.00015254,2]
[351737094,1738771840528,-500.0,0.00015254,2]
[351737096,1738771840538,-500.0,0.00015254,2]
[351737098,1738771840547,-500.0,0.00015254,2]
[351737100,1738771840557,-1124.74,0.00015254,2]
[351737102,1738771840567,-784.33,0.00015254,2]
[351737104,1738771840577,-500.0,0.00015254,2]
[351737106,1738771840587,-500.0,0.00015254,2]
[351737108,1738771840598,-500.0,0.00015254,2]
[351737110,1738771840607,-473.16896912,0.00015254,2]
[351737112,1738771840617,-627.51506266,0.00015254,2]
[351737114,1738771840627,-500.0,0.00015254,2]
[351737115,1738771840637,-500.0,0.00015254,2]
[351737117,1738771840648,-1884.0,0.00015254,2]
[351737119,1738771840658,-500.82904676,0.00015254,2]
[351737121,1738771840669,-500.0,0.00015254,2]
[351737123,1738771840679,-435.277488,0.00015254,2]
[351737125,1738771840688,-500.0,0.00015254,2]
[351737128,1738771840697,-342.46415204,0.00015254,2]
[351737129,1738771840707,-1734.25,0.00015254,2]
[351737131,1738771840716,-500.0,0.00015254,2]
[351737133,1738771840726,-500.0,0.00015254,2]
[351737135,1738771840735,-500.0,0.00015254,2]
[351737137,1738771840745,-640.05,0.00015254,2]
[351737139,1738771840754,-831.69,0.00015254,2]
[351737141,1738771840764,-1000.0,0.00015254,2]
[351737143,1738771840774,-500.0,0.00015254,2]
[351737145,1738771840783,-500.0,0.00015254,2]
[351737147,1738771840792,-1068.34,0.00015254,2]
[351737149,1738771840802,-500.0,0.00015254,2]
[351737151,1738771840816,-500.0,0.00015254,2]
[351737153,1738771840826,-500.0,0.00015254,2]
[351737155,1738771840835,-500.0,0.00015254,2]
[351737157,1738771840844,-500.0,0.00015254,2]
[351737159,1738771840854,-500.0,0.00015254,2]
[351737161,1738771840864,-500.0,0.00015254,2]
[351737163,1738771840873,-500.0,0.00015254,2]
[351737165,1738771840883,-500.0,0.00015254,2]
[351737167,1738771840893,-500.0,0.00015254,2]
[351737169,1738771840903,-500.0,0.00015254,2]
[351737172,1738771840912,-626.74415443,0.00015254,2]
[351737174,1738771840922,-500.0,0.00015254,2]
[351737176,1738771840934,-519.18555177,0.00015254,2]
[351737178,1738771840944,-500.0,0.00015254,2]
[351737180,1738771840954,-500.0,0.00015254,2]
[351737182,1738771840965,-510.44864288,0.00015254,2]
[351737184,1738771840974,-500.0,0.00015254,2]
[351737186,1738771840985,-500.0,0.00015254,2]
[351737188,1738771840995,-500.0,0.00015254,2]
[351737190,1738771841005,-506.44705914,0.00015254,2]
[351737192,1738771841015,-500.0,0.00015254,2]
[351737194,1738771841025,-423.42630439,0.00015254,2]
[351737196,1738771841035,-500.0,0.00015254,2]
[351737198,1738771841045,-500.0,0.00015254,2]
[351737200,1738771841055,-1039.05,0.00015254,2]
[351737202,1738771841068,-507.88964618,0.00015254,2]
[351737204,1738771841079,-500.0,0.00015254,2]
[351737207,1738771841088,-500.0,0.00015254,2]
[351737209,1738771841098,-527.36,0.00015254,2]
[351737211,1738771841108,-500.0,0.00015254,2]
[351737213,1738771841118,-500.0,0.00015254,2]
[351737215,1738771841128,-1445.05,0.00015254,2]
[351737217,1738771841138,-500.0,0.00015254,2]
[351737219,1738771841147,-500.0,0.00015254,2]
[351737221,1738771841157,-500.0,0.00015254,2]
[351737223,1738771841168,-500.0,0.00015254,2]
[351737225,1738771841178,-1110.14,0.00015254,2]
[351737227,1738771841187,-500.0,0.00015254,2]
[351737229,1738771841197,-389.59428123,0.00015254,2]
[351737231,1738771841207,-504.24565577,0.00015254,2]
[351737233,1738771841217,-291.13272378,0.00015254,2]
[351737235,1738771841226,-500.0,0.00015254,2]
[351737237,1738771841236,-761.99,0.00015254,2]
[351737239,1738771841246,-500.0,0.00015254,2]
[351737241,1738771841255,-500.0,0.00015254,2]
[351737244,1738771841265,-500.0,0.00015254,2]
[351737246,1738771841275,-500.0,0.00015254,2]
[351737248,1738771841285,-500.0,0.00015254,2]
[351737250,1738771841295,-500.0,0.00015254,2]
[351737252,1738771841306,-151.0,0.00015254,2]
[351737254,1738771841316,-500.0,0.00015254,2]
[351737256,1738771841326,-500.0,0.00015254,2]
[351737258,1738771841335,-151.0,0.00015254,2]
[351737260,1738771841345,-1055.49,0.00015254,2]
[351737262,1738771841355,-151.0,0.00015254,2]
[351737264,1738771841368,-500.0,0.00015254,2]
[351737266,1738771841378,-500.0,0.00015254,2]
[351737268,1738771841389,-500.0,0.00015254,2]
[351737270,1738771841399,-500.0,0.00015254,2]
[351737272,1738771841411,-500.0,0.00015254,2]
[351737274,1738771841429,-633.98,0.00015254,2]
[351737276,1738771841448,-151.0,0.00015254,2]
[351737278,1738771841460,-500.0,0.00015254,2]
[351737280,1738771841476,-500.0,0.00015254,2]
[351737282,1738771841487,-500.0,0.00015254,2]
[351737284,1738771841498,-500.0,0.00015254,2]
[351737286,1738771841509,-151.0,0.00015254,2]
[351737288,1738771841519,-500.0,0.00015254,2]
[351737290,1738771841529,-506.14144107,0.00015254,2]
[351737292,1738771841539,-515.34,0.00015254,2]
[351737294,1738771841549,-500.0,0.00015254,2]
[351737297,1738771841565,-500.0,0.00015254,2]
[351737298,1738771841575,-500.0,0.00015254,2]
[351737301,1738771841586,-500.0,0.00015254,2]
[351737303,1738771841596,-500.0,0.00015254,2]
[351737305,1738771841606,-500.0,0.00015254,2]
[351737307,1738771841616,-151.0,0.00015254,2]
[351737309,1738771841626,-151.0,0.00015254,2]
[351737311,1738771841637,-151.0,0.00015254,2]
[351737313,1738771841646,-163.57364,0.00015254,2]
[351737314,1738771841656,-151.0,0.00015254,2]
[351737317,1738771841666,-151.0,0.00015254,2]
[351737319,1738771841679,-151.0,0.00015254,2]
[351737321,1738771841689,-151.0,0.00015254,2]
[351737323,1738771841700,-151.0,0.00015254,2]
[351737325,1738771841710,-500.0,0.00015255,2]
[351737327,1738771841720,-500.0,0.00015255,2]
[351737329,1738771841730,-500.0,0.00015255,2]
[351737331,1738771841739,-500.0,0.00015255,2]
[351737333,1738771841750,-500.0,0.00015255,2]
[351737335,1738771841761,-500.0,0.00015255,2]
[351737337,1738771841771,-500.0,0.00015255,2]
[351737339,1738771841782,-500.0,0.00015255,2]
[351737341,1738771841792,-500.0,0.00015255,2]
[351737343,1738771841802,-297.70420624,0.00015255,2]
[351737345,1738771841824,-151.0,0.00015255,2]
[351737348,1738771841835,-151.0,0.00015255,2]
[351737350,1738771841846,-151.0,0.00015255,2]
[351737352,1738771841857,-500.0,0.00015255,2]
[351737354,1738771841867,-500.0,0.00015255,2]
[351737356,1738771841877,-550.48567733,0.00015255,2]
[351737358,1738771841888,-505.07902826,0.00015256,2]
[351737360,1738771841899,-500.0,0.00015256,2]
[351737362,1738771841909,-450.83655582,0.00015256,2]
[351737364,1738771841919,-500.0,0.00015256,2]
[351737366,1738771841929,-500.0,0.00015256,2]
[351737368,1738771841939,-500.0,0.00015256,2]
[351737370,1738771841949,-500.0,0.00015256,2]
[351737372,1738771841959,-500.0,0.00015256,2]
[351737374,1738771841969,-500.0,0.00015256,2]
[351737376,1738771841979,-500.0,0.00015256,2]
[351737378,1738771841989,-502.43778743,0.00015256,2]
[351737380,1738771842000,-500.0,0.00015256,2]
[351737382,1738771842009,-500.0,0.00015256,2]
[351737384,1738771842019,-641.28075093,0.00015256,2]
[351737386,1738771842029,-503.14789903,0.00015256,2]
[351737388,1738771842039,-500.0,0.00015256,2]
[351737390,1738771842049,-525.68072251,0.00015256,2]
[351737393,1738771842066,-503.07180841,0.00015256,2]
[351737394,1738771842075,-502.67477972,0.00015256,2]
[351737396,1738771842084,-215.26399543,0.00015256,2]
[351737398,1738771842094,-502.14864093,0.00015256,2]
[351737400,1738771842104,-569.27656051,0.00015256,2]
[351737402,1738771842114,-500.0,0.00015256,2]
[351737404,1738771842123,-500.0,0.00015256,2]
[351737406,1738771842134,-500.0,0.00015256,2]
[351737409,1738771842143,-500.0,0.00015256,2]
[351737411,1738771842154,-500.0,0.00015256,2]
[351737413,1738771842163,-500.0,0.00015256,2]
[351737415,1738771842173,-500.0,0.00015256,2]
[351737417,1738771842185,-500.0,0.00015256,2]
[351737419,1738771842195,-500.0,0.00015256,2]
[351737421,1738771842205,-500.0,0.00015256,2]
[351737423,1738771842215,-500.0,0.00015256,2]
[351737425,1738771842225,-500.0,0.00015256,2]
[351737427,1738771842235,-190.16296623,0.00015256,2]
[351737429,1738771842245,-635.96,0.00015256,2]
[351737431,1738771842254,-507.76679518,0.00015256,2]
[351737433,1738771842264,-523.98,0.00015256,2]
[351737435,1738771842274,-616.12,0.00015256,2]
[351737437,1738771842284,-859.12,0.00015256,2]
[351737439,1738771842293,-500.0,0.00015256,2]
[351737441,1738771842303,-3871.76,0.00015256,2]
[351737443,1738771842318,-1316.93,0.00015256,2]
[351737445,1738771842327,-151.0,0.00015256,2]
[351737447,1738771842337,-151.0,0.00015256,2]
[351737450,1738771842346,-151.0,0.00015256,2]
[351737451,1738771842356,-151.0,0.00015257,2]
[351737454,1738771842369,-151.0,0.00015257,2]
[351737456,1738771842378,-151.0,0.00015257,2]
[351737458,1738771842388,-151.0,0.00015257,2]
[351737460,1738771842397,-151.0,0.00015257,2]
[351737462,1738771842409,-151.0,0.00015257,2]
[351737464,1738771842419,-500.0,0.00015273,2]
[351737466,1738771842429,-267.54663226,0.00015273,2]
[351737468,1738771842439,-1090.76906547,0.00015288,2]
[351737470,1738771842448,-2950.42378971,0.00015289,2]
[351737472,1738771842459,-498.84075447,0.00015289,2]
[351737503,1738771842759,-2451.58303524,0.00015289,2]
[351737505,1738771842769,-2950.42378971,0.00015289,2]
[351737507,1738771842778,-2950.42378971,0.00015289,2]
[351737509,1738771842789,-2950.42378971,0.00015289,2]
[351737511,1738771842798,-2950.42378971,0.00015289,2]
[351737513,1738771842811,-2950.42378971,0.00015289,2]
[351737515,1738771842821,-2950.42378971,0.00015289,2]
[351737517,1738771842831,-2950.42378971,0.00015289,2]
[351737519,1738771842841,-1603.18957575,0.00015289,2]
[351737629,1738771843789,-1000.0,0.00015251,2]
[351737632,1738771843822,-1314.53,0.00015251,2]
[351737634,1738771843832,-2314.53,0.00015251,2]
[351737636,1738771843841,-640.96465634,0.00015251,2]
[351737638,1738771843853,-1673.75041786,0.00015251,2]
[351737640,1738771843863,-500.0,0.00015251,2]
[351737642,1738771843872,-500.0,0.00015251,2]
[351737644,1738771843882,-1347.23421396,0.00015289,2]
[351737646,1738771843891,-2950.42378971,0.00015289,2]
[351737648,1738771843901,-2950.42378971,0.00015289,2]
[351737650,1738771843910,-2950.42378971,0.00015289,2]
[351737652,1738771843920,-2950.42378971,0.00015289,2]
[351737654,1738771843929,-2950.42378971,0.00015289,2]
[351737656,1738771843939,-2950.42378971,0.00015289,2]
[351737658,1738771843949,-2950.42378971,0.00015289,2]
[351737660,1738771843958,-2950.42378971,0.00015289,2]
[351737662,1738771843967,-2950.42378971,0.00015289,2]
[351737663,1738771843977,-2950.42,0.00015289,2]
[351737665,1738771843987,-215.3336331,0.00015289,2]
[351737667,1738771843997,-215.33,0.00015289,2]
[351737669,1738771844007,-151.0,0.00015293,2]
[351737671,1738771844016,-151.0,0.00015293,2]
[351737673,1738771844026,-151.0,0.00015293,2]
[351737675,1738771844036,-151.0,0.00015293,2]
[351737677,1738771844045,-151.0,0.00015293,2]
[351737679,1738771844054,-152.554602,0.00015293,2]
[351737681,1738771844066,-151.0,0.00015293,2]
[351737683,1738771844075,-151.0,0.000153,2]
[351737685,1738771844084,-151.0,0.000153,2]
[351737687,1738771844094,-151.0,0.000153,2]
[351737688,1738771844103,-151.0,0.000153,2]
[351737690,1738771844113,-151.0,0.000153,2]
[351737692,1738771844123,-151.0,0.000153,2]
[351737694,1738771844133,-151.0,0.000153,2]
[351737696,1738771844143,-151.0,0.00015334,2]
[351737698,1738771844153,-500.0,0.00015373,2]
[351737700,1738771844162,-500.0,0.00015373,2]
[351737702,1738771844172,-500.8775182,0.00015373,2]
[351737704,1738771844182,-356.16899759,0.00015373,2]
[351737706,1738771844191,-500.0,0.00015373,2]
[351737708,1738771844201,-512.14,0.00015386,2]
[351737710,1738771844210,-500.0,0.00015386,2]
[351737711,1738771844220,-500.0,0.00015386,2]
[351737713,1738771844230,-594.59,0.00015386,2]
[351737715,1738771844239,-6593.34,0.00015386,2]
[351737717,1738771844249,-3584.4,0.00015386,2]
[351737719,1738771844259,-2230.95,0.00015386,2]
[351737721,1738771844269,-1359.93,0.00015386,2]
[351737723,1738771844279,-1472.35,0.00015386,2]
[351737725,1738771844289,-500.0,0.00015386,2]
[351737727,1738771844299,-1147.83,0.00015386,2]
[351737729,1738771844311,-500.0,0.00015386,2]
[351737731,1738771844320,-500.0,0.00015386,2]
[351737733,1738771844330,-3289.03,0.00015386,2]
[351737734,1738771844340,-500.0,0.00015386,2]
[351737736,1738771844349,-500.0,0.00015386,2]
[351737738,1738771844359,-3047.13,0.00015386,2]
[351737740,1738771844370,-754.83,0.00015386,2]
[351737742,1738771844383,-7627.12,0.00015386,2]
[351737744,1738771844393,-413.40817577,0.00015386,2]
[351737746,1738771844402,-3602.87,0.00015386,2]
[351737748,1738771844412,-798.11,0.00015387,2]
[351737750,1738771844422,-801.81,0.00015387,2]
[351737752,1738771844432,-16295.46,0.00015387,2]
[351737754,1738771844442,-500.0,0.00015387,2]
[351737756,1738771844452,-8035.53,0.00015387,2]
[351737758,1738771844463,-500.0,0.00015387,2]
[351737760,1738771844473,-500.0,0.00015387,2]
[351737762,1738771844482,-1207.53,0.00015387,2]
[351737764,1738771844492,-500.0,0.00015387,2]
[351737766,1738771844500,-556.29751977,0.00015387,2]
[351737767,1738771844510,-955.96,0.00015387,2]